fUST/lending_fUST_20250618
["ID","MTS","AMOUNT","RATE_DAILY","PERIOD"]
[366355576,1750206435087,-198.0,0.00021917,6]
[366355577,1750206435110,-1374.4,0.00021917,6]
[366355578,1750206435131,-151.0,0.00021917,6]
[366355579,1750206435152,-460.0,0.00021917,6]
[366355580,1750206435174,-154.589193,0.00021917,6]
[366355581,1750206435199,-151.0,0.00021917,6]
[366355582,1750206435222,-430.0,0.00021917,6]
[366355583,1750206435245,-460.0,0.00021917,6]
[366355584,1750206435270,-430.0,0.00021917,6]
[366355585,1750206435300,-460.0,0.00021917,6]
[366355586,1750206435326,-460.0,0.00021917,6]
[366355587,1750206435354,-440.0,0.00021917,6]
[366355588,1750206435382,-460.0,0.00021917,6]
[366355589,1750206435409,-460.0,0.00021917,6]
[366355590,1750206435550,-430.0,0.00021917,6]
[366355591,1750206435574,-430.0,0.00021917,6]
[366355592,1750206435599,-460.0,0.00021917,6]
[366355593,1750206435631,-253.8329926,0.00021934,6]
[366355594,1750206435654,-184.0,0.00021935,2]
[366355595,1750206435678,-244.40573008,0.00021944,6]
[366355596,1750206435706,-165.0,0.00022,2]
[366355597,1750206435727,-460.0,0.00022027,6]
[366355598,1750206435749,-460.0,0.00022027,6]
[366355599,1750206435771,-460.0,0.00022027,6]
[366355600,1750206435792,-460.0,0.00022027,6]
[366355601,1750206435814,-460.0,0.00022027,6]
[366355602,1750206435840,-400.0,0.00022027,6]
[366355603,1750206435861,-440.0,0.00022027,6]
[366355604,1750206435885,-460.0,0.00022027,6]
[366355605,1750206435907,-410.0,0.00022027,6]
[366355606,1750206435929,-460.0,0.00022027,6]
[366355607,1750206435954,-430.0,0.00022027,6]
[366355608,1750206435975,-400.0,0.00022027,6]
[366355609,1750206435997,-400.0,0.00022027,6]
[366355610,1750206436022,-400.0,0.00022027,6]
[366355611,1750206436046,-410.0,0.00022027,6]
[366355612,1750206436067,-430.0,0.00022027,6]
[366355613,1750206436090,-460.0,0.00022027,6]
[366355614,1750206436111,-460.0,0.00022027,6]
[366355615,1750206436131,-330.09027495,0.00022027,6]
[366355616,1750206436151,-200.0,0.00022027,6]
[366355617,1750206436173,-410.0,0.00022027,6]
[366355618,1750206436196,-460.0,0.00022027,6]
[366355619,1750206436218,-420.0,0.00022027,6]
[366355620,1750206436240,-460.0,0.00022027,6]
[366355621,1750206436261,-542.92775978,0.00022027,6]
[366355622,1750206436284,-460.0,0.00022027,6]
[366355623,1750206436312,-460.0,0.00022027,6]
[366355624,1750206436334,-410.0,0.00022027,6]
[366355625,1750206436356,-457.53338429,0.00022027,6]
[366355626,1750206436380,-460.0,0.00022027,6]
[366355627,1750206436402,-460.0,0.00022027,6]
[366355628,1750206436424,-460.0,0.00022027,6]
[366355629,1750206436449,-206.07,0.00022027,6]
[366355630,1750206436473,-460.0,0.00022027,6]
[366355631,1750206436496,-460.0,0.00022027,6]
[366355632,1750206436521,-460.0,0.00022027,6]
[366355633,1750206436542,-460.0,0.00022027,6]
[366355634,1750206436565,-460.0,0.00022027,6]
[366355635,1750206436587,-460.0,0.00022027,6]
[366355636,1750206436609,-460.0,0.00022027,6]
[366355637,1750206436631,-460.0,0.00022027,6]
[366355638,1750206436654,-460.0,0.00022027,6]
[366355639,1750206436676,-370.0,0.00022027,6]
[366355640,1750206436701,-392.13753428,0.00022027,6]
[366355641,1750206436723,-410.0,0.00022027,6]
[366355642,1750206436746,-460.0,0.00022027,6]
[366355643,1750206436769,-460.0,0.00022027,6]
[366355644,1750206436793,-460.0,0.00022027,6]
[366355645,1750206436814,-460.0,0.00022027,6]
[366355646,1750206436835,-460.0,0.00022027,6]
[366355647,1750206436857,-460.0,0.00022027,6]
[366355648,1750206436878,-460.0,0.00022027,6]
[366355649,1750206436902,-467.59,0.00022027,6]
[366355650,1750206436923,-410.0,0.00022027,6]
[366355651,1750206436946,-460.0,0.00022027,6]
[366355652,1750206436970,-460.0,0.00022027,6]
[366355653,1750206436993,-460.0,0.00022027,6]
[366355654,1750206437017,-460.0,0.00022027,6]
[366355655,1750206437037,-460.0,0.00022027,6]
[366355656,1750206437058,-460.0,0.00022027,6]
[366355657,1750206437080,-1374.4,0.00022027,6]
[366355658,1750206437101,-245.54174136,0.00022027,6]
[366355659,1750206437122,-420.0,0.00022027,6]
[366355660,1750206437144,-350.0,0.00022027,6]
[366355661,1750206437166,-460.0,0.00022027,6]
[366355662,1750206437190,-460.0,0.00022027,6]
[366355663,1750206437212,-460.0,0.00022027,6]
[366355664,1750206437235,-184.0,0.00022035,2]
[366355665,1750206437258,-1105.09,0.00022084,2]
[366355666,1750206437289,-253.8329926,0.00022107,6]
[366355667,1750206437317,-184.0,0.00022116,2]
[366355668,1750206437340,-165.87,0.00022126,3]
[366355669,1750206437364,-497.65,0.00022126,3]
[366355670,1750206437387,-460.0,0.00022136,6]
[366355671,1750206437408,-460.0,0.00022136,6]
[366355672,1750206437429,-460.0,0.00022136,6]
[366355673,1750206437452,-460.0,0.00022136,6]
[366355674,1750206437475,-154.29773761,0.00022136,6]
[366355675,1750206437742,-305.70226239,0.00022136,6]
[366355676,1750206437764,-400.0,0.00022136,6]
[366355677,1750206437786,-400.0,0.00022136,6]
[366355678,1750206437807,-317.9452743,0.00022136,6]
[366355679,1750206438122,-72.0547257,0.00022136,6]
[366355680,1750206438143,-289.72297298,0.00022136,6]
[366355681,1750206438166,-178.66919532,0.00022136,6]
[366355685,1750206542266,161.0,0.00016438,3]
[366355690,1750206566069,-155.232,0.000195,5]
[366355691,1750206566097,-199.59747751,0.000195,5]
[366355692,1750206566120,-531.45,0.00020243,2]
[366355693,1750206566140,-1222.14846104,0.00020243,2]
[366355697,1750206578172,101.87386145,0.00019927,2]
[366355723,1750206632197,-386.52073082,0.00019927,2]
[366355726,1750206632207,-524.68,0.00020285,2]
[366355729,1750206632227,-206.8268831,0.000219,6]
[366355731,1750206632238,-437.02,0.00021917,6]
[366355733,1750206632248,-460.0,0.00021917,6]
[366355735,1750206632258,-460.0,0.00021917,6]
[366355737,1750206632268,-460.0,0.00021917,6]
[366355739,1750206632278,-460.0,0.00021917,6]
[366355741,1750206632288,-460.0,0.00021917,6]
[366355743,1750206632298,-460.0,0.00021917,6]
[366355745,1750206632308,-460.0,0.00021917,6]
[366355747,1750206632318,-460.0,0.00021917,6]
[366355749,1750206632328,-460.0,0.00021917,6]
[366355750,1750206632338,-460.0,0.00021917,6]
[366355752,1750206632351,-354.79151291,0.00021917,6]
[366355755,1750206632365,-105.20848709,0.00021917,6]
[366355759,1750206632376,-445.76017232,0.00021917,6]
[366355763,1750206632387,-460.0,0.00021917,6]
[366355765,1750206632397,-460.0,0.00021917,6]
[366355769,1750206632407,-460.0,0.00021917,6]
[366355772,1750206632418,-460.0,0.00021917,6]
[366355775,1750206632429,-364.34415398,0.00021917,6]
[366355777,1750206632439,-454.14603148,0.00021917,6]
[366355779,1750206632450,-460.0,0.00021917,6]
[366355781,1750206632459,-460.0,0.00021917,6]
[366355783,1750206632469,-440.0,0.00021917,6]
[366355785,1750206632479,-460.0,0.00021917,6]
[366355787,1750206632489,-460.0,0.00021917,6]
[366355789,1750206632499,-430.0,0.00021917,6]
[366355791,1750206632509,-460.0,0.00021917,6]
[366355793,1750206632519,-460.0,0.00021917,6]
[366355795,1750206632529,-538.25,0.00021917,6]
[366355797,1750206632538,-460.0,0.00021917,6]
[366355799,1750206632548,-460.0,0.00021917,6]
[366355801,1750206632558,-460.0,0.00021917,6]
[366355803,1750206632568,-280.0,0.00021917,6]
[366355805,1750206632577,-460.0,0.00021917,6]
[366355807,1750206632587,-460.0,0.00021917,6]
[366355809,1750206632596,-460.0,0.00021917,6]
[366355811,1750206632606,-430.0,0.00021917,6]
[366355813,1750206632616,-460.0,0.00021917,6]
[366355815,1750206632625,-390.0,0.00021917,6]
[366355817,1750206632635,-460.0,0.00022027,6]
[366355819,1750206632644,-460.0,0.00022027,6]
[366355821,1750206632654,-319.61171324,0.00022027,6]
[366355823,1750206632663,-460.0,0.00022027,6]
[366355825,1750206632673,-460.0,0.00022027,6]
[366355827,1750206632682,-460.0,0.00022027,6]
[366355829,1750206632693,-460.0,0.00022027,6]
[366355831,1750206632703,-410.0,0.00022027,6]
[366355833,1750206632712,-460.0,0.00022027,6]
[366355835,1750206632722,-460.0,0.00022027,6]
[366355837,1750206632731,-319.19,0.00022027,6]
[366355839,1750206632741,-460.0,0.00022027,6]
[366355841,1750206632750,-460.0,0.00022027,6]
[366355843,1750206632760,-460.0,0.00022027,6]
[366355846,1750206632770,-400.0,0.00022027,6]
[366355848,1750206632779,-460.0,0.00022027,6]
[366355850,1750206632789,-460.0,0.00022027,6]
[366355851,1750206632798,-460.0,0.00022027,6]
[366355853,1750206632808,-460.0,0.00022027,6]
[366355855,1750206632817,-460.0,0.00022027,6]
[366355858,1750206632830,-460.0,0.00022027,6]
[366355860,1750206632840,-340.0,0.00022027,6]
[366355862,1750206632850,-460.0,0.00022027,6]
[366355864,1750206632859,-460.0,0.00022027,6]
[366355866,1750206632870,-460.0,0.00022027,6]
[366355868,1750206632879,-460.0,0.00022027,6]
[366355869,1750206632889,-234.92,0.00022027,6]
[366355870,1750206632898,-206.82688285,0.00022054,6]
[366355871,1750206632907,-1049.37,0.00022129,2]
[366355872,1750206632917,-420.0,0.00022136,6]
[366355873,1750206632926,-460.0,0.00022136,6]
[366355874,1750206632936,-370.0,0.00022136,6]
[366355875,1750206632945,-460.0,0.00022136,6]
[366355876,1750206632955,-1374.4,0.00022136,6]
[366355877,1750206632965,-460.0,0.00022136,6]
[366355878,1750206632974,-460.0,0.00022136,6]
[366355879,1750206632984,-532.08,0.00022136,6]
[366355880,1750206632994,-460.0,0.00022136,6]
[366355881,1750206633003,-460.0,0.00022136,6]
[366355882,1750206633012,-460.0,0.00022136,6]
[366355883,1750206633022,-237.74,0.00022136,6]
[366355884,1750206633033,-318.4754596,0.00022136,6]
[366355885,1750206633043,-308.08,0.00022136,6]
[366355886,1750206633053,-460.0,0.00022136,6]
[366355887,1750206633063,-527.07,0.00022136,6]
[366355888,1750206633074,-460.0,0.00022136,6]
[366355889,1750206633084,-460.0,0.00022136,6]
[366355890,1750206633095,-460.0,0.00022136,6]
[366355891,1750206633105,-460.0,0.00022136,6]
[366355892,1750206633116,-206.82688285,0.00022208,6]
[366355893,1750206633127,-160.0,0.00022245,2]
[366355894,1750206633137,-460.0,0.00022246,6]
[366355895,1750206633147,-460.0,0.00022246,6]
[366355896,1750206633158,-1374.4,0.00022246,6]
[366355897,1750206633168,-460.0,0.00022246,6]
[366355898,1750206633178,-460.0,0.00022246,6]
[366355899,1750206633188,-253.57,0.00022246,6]
[366355900,1750206633198,-460.0,0.00022246,6]
[366355901,1750206633208,-460.0,0.00022246,6]
[366355902,1750206633218,-460.0,0.00022246,6]
[366355903,1750206633228,-460.0,0.00022246,6]
[366355904,1750206633238,-460.0,0.00022246,6]
[366355905,1750206633248,-460.0,0.00022246,6]
[366355906,1750206633258,-329.0,0.00022249,2]
[366355907,1750206633270,-506.77,0.00022356,6]
[366355908,1750206633281,-507.09,0.00022356,6]
[366355909,1750206633291,-1374.4,0.00022356,6]
[366355910,1750206633301,-460.0,0.00022356,6]
[366355911,1750206633312,-460.0,0.00022356,6]
[366355912,1750206633322,-460.0,0.00022356,6]
[366355913,1750206633333,-460.0,0.00022356,6]
[366355914,1750206633345,-552.35,0.00022356,6]
[366355915,1750206633357,-460.0,0.00022356,6]
[366355916,1750206633370,-460.0,0.00022356,6]
[366355917,1750206633384,-460.0,0.00022356,6]
[366355918,1750206633395,-206.82688285,0.00022362,7]
[366355919,1750206633405,-5000.0,0.00022388,2]
[366355920,1750206633416,-939.08365684,0.00022388,2]
[366355921,1750206633426,-1688.0,0.00022388,2]
[366355922,1750206633436,-500.0,0.00022388,2]
[366355923,1750206633446,-500.0,0.00022388,2]
[366355924,1750206633456,-207.4,0.00022388,2]
[366355925,1750206633466,-500.0,0.00022388,2]
[366355926,1750206633477,-500.0,0.00022388,2]
[366355927,1750206633487,-500.0,0.00022388,2]
[366355928,1750206633497,-215.57544908,0.00022388,2]
[366355929,1750206633512,-284.42455092,0.00022388,2]
[366355930,1750206633522,-500.0,0.00022388,2]
[366355931,1750206633533,-500.0,0.00022388,2]
[366355932,1750206633544,-500.0,0.00022388,2]
[366355933,1750206633554,-500.0,0.00022388,2]
[366355934,1750206633564,-500.0,0.00022388,2]
[366355935,1750206633574,-500.0,0.00022388,2]
[366355936,1750206633583,-500.0,0.00022388,2]
[366355937,1750206633593,-500.0,0.00022388,2]
[366355938,1750206633603,-452.97187926,0.00022388,2]
[366355939,1750206633621,-5000.0,0.00019728,2]
[366355940,1750206633631,-83.00456591,0.00022388,2]
[366355941,1750206633642,-3202.4,0.000224,7]
[366355942,1750206633652,-500.0,0.0002242,2]
[366355943,1750206633662,-1206.00130259,0.00022443,2]
[366355944,1750206633672,-164.81169203,0.00022465,6]
[366355945,1750206633684,-1209.58830797,0.00022465,6]
[366355946,1750206633694,-419.07,0.00022465,6]
[366355947,1750206633704,-460.0,0.00022465,6]
[366355948,1750206633714,-460.0,0.00022465,6]
[366355949,1750206633724,-460.0,0.00022465,6]
[366355950,1750206633734,-460.0,0.00022465,6]
[366355951,1750206633744,-460.0,0.00022465,6]
[366355952,1750206633754,-460.0,0.00022465,6]
[366355953,1750206633764,-206.82688285,0.00022515,7]
[366355954,1750206633774,-329.0,0.00022527,2]
[366355955,1750206633784,-500.0,0.00022561,2]
[366355956,1750206633793,-1374.4,0.00022575,6]
[366355957,1750206633803,-460.0,0.00022575,6]
[366355958,1750206633813,-460.0,0.00022575,6]
[366355959,1750206633822,-321.19,0.00022575,6]
[366355960,1750206633832,-460.0,0.00022575,6]
[366355961,1750206633841,-460.0,0.00022575,6]
[366355962,1750206633851,-460.0,0.00022575,6]
[366355963,1750206633861,-206.82688285,0.00022669,7]
[366355964,1750206633871,-1374.4,0.00022684,6]
[366355965,1750206633881,-460.0,0.00022684,6]
[366355966,1750206633891,-460.0,0.00022684,6]
[366355967,1750206633901,-460.0,0.00022684,6]
[366355968,1750206633910,-460.0,0.00022684,6]
[366355969,1750206633920,-460.0,0.00022684,6]
[366355970,1750206633930,-1374.4,0.00022794,6]
[366355971,1750206633939,-460.0,0.00022794,6]
[366355972,1750206633948,-460.0,0.00022794,6]
[366355973,1750206633957,-460.0,0.00022794,6]
[366355974,1750206633967,-460.0,0.00022794,6]
[366355975,1750206633977,-460.0,0.00022794,6]
[366355976,1750206633986,-206.82688285,0.00022823,8]
[366355977,1750206633996,-1374.4,0.00022904,6]
[366355978,1750206634006,-460.0,0.00022904,6]
[366355979,1750206634016,-460.0,0.00022904,6]
[366355980,1750206634025,-460.0,0.00022904,6]
[366355981,1750206634035,-460.0,0.00022904,6]
[366355982,1750206634045,-460.0,0.00022904,6]
[366355983,1750206634055,-5000.0,0.00022936,2]
[366355984,1750206634064,-329.0,0.00022955,2]
[366355985,1750206634074,-500.0,0.00022968,2]
[366355986,1750206634083,-206.82688285,0.00022977,8]
[366355987,1750206634092,-455.97919011,0.00023012,6]
[366355988,1750206634102,-430.0,0.00023012,6]
[366355989,1750206634112,-460.0,0.00023012,6]
[366355990,1750206634122,-460.0,0.00023012,6]
[366355991,1750206634133,-460.0,0.00023012,6]
[366355992,1750206634143,-460.0,0.00023012,6]
[366355993,1750206634153,-460.0,0.00023012,6]
[366355994,1750206634163,-430.0,0.00023012,6]
[366355995,1750206634184,-430.0,0.00023012,6]
[366355996,1750206634194,-460.0,0.00023012,6]
[366355997,1750206634204,-436.7367056,0.00023012,6]
[366355998,1750206634214,-500.0,0.00023012,6]
[366355999,1750206634225,-430.0,0.00023012,6]
[366356000,1750206634236,-460.0,0.00023012,6]
[366356001,1750206634246,-430.0,0.00023012,6]
[366356002,1750206634257,-460.0,0.00023012,6]
[366356003,1750206634267,-518.73,0.00023012,6]
[366356004,1750206634277,-1374.4,0.00023013,6]
[366356005,1750206634287,-460.0,0.00023013,6]
[366356006,1750206634297,-460.0,0.00023013,6]
[366356007,1750206634307,-460.0,0.00023013,6]
[366356008,1750206634318,-460.0,0.00023013,6]
[366356009,1750206634328,-460.0,0.00023013,6]
[366356010,1750206634338,-460.0,0.00023122,6]
[366356011,1750206634352,-460.0,0.00023122,6]
[366356012,1750206634363,-446.63725914,0.00023122,6]
[366356013,1750206634373,-460.0,0.00023122,6]
[366356014,1750206634384,-471.1,0.00023122,6]
[366356015,1750206634394,-460.0,0.00023122,6]
[366356016,1750206634404,-460.0,0.00023122,6]
[366356017,1750206634414,-1374.4,0.00023123,6]
[366356018,1750206634426,-460.0,0.00023123,6]
[366356019,1750206634436,-460.0,0.00023123,6]
[366356020,1750206634447,-460.0,0.00023123,6]
[366356021,1750206634457,-460.0,0.00023123,6]
[366356022,1750206634468,-460.0,0.00023123,6]
[366356023,1750206634479,-206.82688285,0.00023131,8]
[366356024,1750206634489,-500.0,0.00023178,2]
[366356025,1750206634499,-177.1110308,0.00023178,2]
[366356026,1750206634508,-574.1078115,0.00023178,2]
[366356027,1750206634518,-500.0,0.0002318,2]
[366356028,1750206634528,-500.0,0.0002318,2]
[366356029,1750206634538,-541.53280507,0.0002318,2]
[366356030,1750206634547,-460.0,0.00023231,6]
[366356031,1750206634557,-460.0,0.00023231,6]
[366356032,1750206634567,-460.0,0.00023231,6]
[366356033,1750206634576,-460.0,0.00023231,6]
[366356034,1750206634586,-270.38702328,0.00023231,6]
[366356035,1750206634596,-1374.4,0.00023232,6]
[366356036,1750206634605,-460.0,0.00023232,6]
[366356037,1750206634616,-460.0,0.00023232,6]
[366356038,1750206634625,-460.0,0.00023232,6]
[366356039,1750206634636,-460.0,0.00023232,6]
[366356040,1750206634646,-460.0,0.00023232,6]
[366356041,1750206634655,-500.0,0.00023233,2]
[366356042,1750206634665,-500.0,0.00023255,2]
[366356043,1750206634675,-189.0,0.00023282,2]
[366356044,1750206634686,-206.82688285,0.00023285,8]
[366356045,1750206634695,-151.0,0.00023288,6]
[366356046,1750206634705,-329.0,0.00023305,2]
[366356047,1750206634714,-500.0,0.00023311,2]
[366356048,1750206634724,-500.0,0.00023311,2]
[366356049,1750206634734,-500.0,0.00023311,2]
[366356050,1750206634743,-350.96255541,0.00023311,2]
[366356051,1750206634753,-500.0,0.00023311,2]
[366356052,1750206634763,-500.0,0.00023311,2]
[366356053,1750206634773,-500.0,0.00023311,2]
[366356054,1750206634915,-585.07903443,0.00023311,2]
[366356055,1750206634925,-500.0,0.00023311,2]
[366356056,1750206634935,-500.0,0.00023311,2]
[366356057,1750206634945,-500.0,0.00023311,2]
[366356058,1750206634953,-500.0,0.00023311,2]
[366356059,1750206634963,-500.0,0.00023311,2]
[366356060,1750206634973,-500.0,0.00023311,2]
[366356061,1750206634983,-500.0,0.00023311,2]
[366356062,1750206634992,-500.0,0.00023311,2]
[366356063,1750206635001,-216.16619399,0.00023315,6]
[366356064,1750206635011,-460.0,0.00023341,6]
[366356065,1750206635024,-460.0,0.00023341,6]
[366356066,1750206635033,-539.21540214,0.00023341,6]
[366356067,1750206635043,-460.0,0.00023341,6]
[366356068,1750206635052,-1374.4,0.00023342,6]
[366356069,1750206635061,-460.0,0.00023342,6]
[366356070,1750206635071,-460.0,0.00023342,6]
[366356071,1750206635080,-460.0,0.00023342,6]
[366356072,1750206635090,-545.9,0.00023342,6]
[366356073,1750206635099,-460.0,0.00023342,6]
[366356074,1750206635108,-161.7762366,0.00023415,2]
[366356075,1750206635118,-329.0,0.00023435,2]
[366356076,1750206635127,-206.82688285,0.00023438,9]
[366356077,1750206635137,-460.0,0.0002345,6]
[366356078,1750206635146,-390.0,0.0002345,6]
[366356079,1750206635156,-1374.4,0.00023452,6]
[366356080,1750206635165,-460.0,0.00023452,6]
[366356081,1750206635174,-460.0,0.00023452,6]
[366356082,1750206635184,-460.0,0.00023452,6]
[366356083,1750206635194,-460.0,0.00023452,6]
[366356084,1750206635204,-5000.0,0.00023484,2]
[366356085,1750206635215,-331.74,0.000235,3]
[366356086,1750206635225,-424.62582665,0.00023507,2]
[366356087,1750206635235,-160.0,0.00023507,2]
[366356088,1750206635245,-160.0,0.00023507,2]
[366356089,1750206635254,-2423.0,0.0002351,2]
[366356090,1750206635264,-780.586686,0.0002352,3]
[366356091,1750206635273,-229.94211981,0.00023526,2]
[366356092,1750206635283,-845.62440851,0.00023526,2]
[366356093,1750206635292,-160.0,0.00023526,2]
[366356094,1750206635301,-12540.12310952,0.00023526,2]
[366356095,1750206635311,-835.82910252,0.00023526,2]
[366356096,1750206635321,-213.39869953,0.00023526,2]
[366356097,1750206635330,-160.0,0.00023526,2]
[366356098,1750206635340,-502.77251593,0.00023533,2]
[366356099,1750206635353,-151.7,0.00023555,6]
[366356100,1750206635362,-359.73,0.0002356,6]
[366356101,1750206635580,-1374.4,0.00023561,6]
[366356102,1750206635590,-460.0,0.00023561,6]
[366356103,1750206635600,-460.0,0.00023561,6]
[366356104,1750206635609,-460.0,0.00023561,6]
[366356105,1750206635618,-200.32,0.00023561,6]
[366356106,1750206635628,-206.82688285,0.00023592,9]
[366356107,1750206635637,-160.0,0.00023615,2]
[366356108,1750206635648,-329.0,0.00023619,2]
[366356109,1750206635658,-296.88185926,0.00023638,2]
[366356110,1750206635668,-1374.4,0.00023671,6]
[366356111,1750206635677,-460.0,0.00023671,6]
[366356112,1750206635686,-460.0,0.00023671,6]
[366356113,1750206635696,-460.0,0.00023671,6]
[366356114,1750206635705,-151.7,0.00023701,6]
[366356115,1750206635715,-1000.0,0.00023726,2]
[366356116,1750206635724,-1084.74449099,0.00023728,2]
[366356117,1750206635734,-311.88286104,0.00023728,2]
[366356118,1750206635743,-206.82688285,0.00023746,9]
[366356119,1750206635753,-215.0738,0.00023757,2]
[366356120,1750206635762,-1374.4,0.0002378,6]
[366356121,1750206635772,-460.0,0.0002378,6]
[366356122,1750206635781,-460.0,0.0002378,6]
[366356123,1750206635790,-460.0,0.0002378,6]
[366356124,1750206635800,-3202.4,0.000238,7]
[366356125,1750206635810,-1038.61123882,0.000238,2]
[366356126,1750206635819,-16110.80662,0.000238,3]
[366356127,1750206635828,-500.0,0.00023813,2]
[366356128,1750206635838,-500.0,0.00023813,2]
[366356129,1750206635847,-600.0,0.00023813,2]
[366356130,1750206635856,-500.0,0.00023813,2]
[366356131,1750206635865,-500.0,0.00023813,2]
[366356132,1750206635876,-500.0,0.00023813,2]
[366356133,1750206635885,-500.0,0.00023813,2]
[366356134,1750206635895,-500.0,0.00023813,2]
[366356135,1750206635906,-161.7762366,0.00023826,2]
[366356136,1750206635915,-151.7,0.00023848,6]
[366356137,1750206635924,-500.0,0.00023859,2]
[366356138,1750206635933,-1000.0,0.00023859,2]
[366356139,1750206635943,-1112.42713456,0.00023859,2]
[366356140,1750206635951,-1000.0,0.00023859,2]
[366356141,1750206635961,-500.9324502,0.00023859,2]
[366356142,1750206635970,-1000.0,0.00023859,2]
[366356143,1750206635979,-1051.40217156,0.00023859,2]
[366356144,1750206635989,-1000.0,0.00023859,2]
[366356145,1750206635998,-1000.0,0.00023859,2]
[366356146,1750206636007,-1000.0,0.00023859,2]
[366356147,1750206636017,-1000.0,0.00023859,2]
[366356148,1750206636026,-500.0,0.00023859,2]
[366356149,1750206636035,-1000.0,0.00023859,2]
[366356150,1750206636045,-570.6173046,0.00023859,2]
[366356151,1750206636054,-22327.64685744,0.00023888,2]
[366356152,1750206636063,-500.0,0.00023889,2]
[366356153,1750206636072,-500.0,0.00023889,2]
[366356154,1750206636082,-1374.4,0.0002389,6]
[366356155,1750206636091,-460.0,0.0002389,6]
[366356156,1750206636100,-460.0,0.0002389,6]
[366356157,1750206636109,-460.0,0.0002389,6]
[366356158,1750206636119,-500.0,0.00023899,6]
[366356159,1750206636127,-878.94355194,0.000239,2]
[366356160,1750206636139,-206.82688285,0.000239,10]
[366356161,1750206636148,-162.240238,0.00023973,2]
[366356162,1750206636157,-500.0,0.00023973,2]
[366356163,1750206636166,-500.0,0.00023973,2]
[366356164,1750206636176,-500.0,0.00023973,2]
[366356165,1750206636185,-1574.05,0.00023973,2]
[366356166,1750206636194,-151.7,0.00023995,7]
[366356167,1750206636203,-500.0,0.00023999,2]
[366356168,1750206636213,-500.0,0.00023999,2]
[366356169,1750206636222,-500.0,0.00023999,2]
[366356170,1750206636231,-293.00500645,0.00023999,2]
[366356171,1750206636240,-13608.31590003,0.00024,2]
[366356172,1750206636250,-7667.16904614,0.00024,2]
[366356173,1750206636259,-234263.40771408,0.00024,7]
[366356184,1750206638146,-430.0,0.00021917,6]
[366356186,1750206638156,-250.0,0.00023454,2]
[366356188,1750206638166,-940.67735228,0.00024,7]
[366356268,1750206640815,-59407.47014451,0.00024,7]
[366356750,1750206646930,-460.0,0.00021917,6]
[366356752,1750206646939,-566.7089,0.00021917,6]
[366356754,1750206646949,-460.0,0.00022027,6]
[366356756,1750206646958,-460.0,0.00022136,6]
[366356758,1750206646968,-460.0,0.00022246,6]
[366356760,1750206646978,-460.0,0.00022356,6]
[366356762,1750206646987,-460.0,0.00022465,6]
[366356764,1750206646996,-32244.78467495,0.00024,7]
[366357019,1750206856254,160.0,0.00016438,3]
[366357021,1750207171186,157.0,0.00016438,3]
[366357022,1750207417076,162.240238,0.00013699,2]